Cogmind - Beta 15 @@@ ROGUE MODE // 2025.07.28 @ 20:59:04 Player: VR-DUX Result: Destroyed by G-34 Mercenary with Small Laser Performance ------------- Evolutions (0) 0 Regions Visited (1) 200 Robots Destroyed (14) 70 Value Destroyed (280) 280 Prototype IDs (0) 0 Alien Tech Used (0) 0 Bonus (0) 0 TOTAL SCORE: 550 Bonus ------- None Cogmind --------- Core Integrity 0/250 Matter 278/300 Energy 125/125 System Corruption 0% Temperature Cool (6) Movement Rolling (110) Ox1 Location -10/Materials Parts ------- > --- POWER (1) -------- Light Ion Engine > --- PROPULSION (2) --- Compact Wheel Armored Wheel > --- UTILITY (2) ------ Improved Heat Sink High-capacity Storage Unit > --- WEAPON (2) ------- Beam Cannon Shotgun > --- INVENTORY (20) --- Wheel Medium Storage Unit Large Storage Unit Structural Scanner Sensor Array Signal Interpreter Seismic Detector Hacking Suite Medium Laser Rocket Launcher Rocket Launcher Hammer Peak State ------------ > --- POWER ------------ Light Ion Engine > --- PROPULSION ------- Compact Wheel Armored Wheel > --- UTILITY ---------- Improved Heat Sink High-capacity Storage Unit > --- WEAPON ----------- Beam Cannon Shotgun > --- INVENTORY -------- Wheel Large Storage Unit Structural Scanner Sensor Array Signal Interpreter Seismic Detector Hacking Suite Medium Laser Rocket Launcher Rocket Launcher Hammer [Rating: 12] Favorites ----------- Power Light Ion Engine Engine Light Ion Engine Propulsion Aluminum Leg Treads Light Treads Leg Aluminum Leg Wheel Compact Wheel Utility High-capacity Storage Unit Device Structural Scanner Storage High-capacity Storage Unit Weapon Medium Laser Energy Gun Medium Laser Energy Cannon Beam Cannon Ballistic Gun Shotgun Launcher Rocket Launcher Build | -11 -10 ------- Run | Yrd Mat Slots Evolved . | . . Power . | . . Propulsion . | . . Utility . | . . Weapon . | . . Parts Attached 14 | 1 13 Power 1 | . 1 Engine 1 | . 1 Core . | . . Reactor . | . . Propulsion 4 | 1 3 Treads 2 | . 2 Leg . | . . Wheel 2 | 1 1 Hover . | . . Flight . | . . Utility 4 | . 4 Device 3 | . 3 Storage 1 | . 1 Processor . | . . Hackware . | . . Protection . | . . Artifact . | . . Weapon 5 | . 5 Energy Gun 2 | . 2 Energy Cannon 1 | . 1 Ballistic Gun 1 | . 1 Ballistic Cannon . | . . Launcher 1 | . 1 Special Weapon . | . . Impact Weapon . | . . Slashing Weapon . | . . Piercing Weapon . | . . Special Melee Weapon . | . . Unidentified Prototypes . | . . Parts Lost 6 | . 6 Power 1 | . 1 Propulsion 2 | . 2 Utility 1 | . 1 Weapon 2 | . 2 Highest Loss Streak 6 | . 6 To Critical Strikes . | . . Average Backups 10 | 6 10 Power . | 1 . Propulsion 2 | 4 2 Utility 3 | . 3 Weapon 3 | 1 3 Tool/Special . | . . Unused Backups 14 | . 14 Power 1 | . 1 Propulsion 4 | . 4 Utility 6 | . 6 Weapon 3 | . 3 Tool/Special . | . . Average Slot Usage (%) 91 | . 91 Engine 13 | . 13 Treads 1 | . 1 Leg 12 | . 12 Wheel 13 | . 13 Device 9 | . 9 Storage 14 | . 14 Energy Gun 20 | . 20 Energy Cannon 3 | . 3 Ballistic Gun 1 | . 1 Peak Build Rating 12 | 6 12 Average Rating 7 | 5 7 On Entrance 6 | 6 6 Naked Turns . | . . Heaviest Build 52 | 12 52 Greatest Support 28 | 20 28 Greatest Overweight (x) 4 | . 4 Average Overweight (x) 1 | . 1 Largest Inventory Capacity 20 | 8 20 Average Capacity 17 | 8 17 Most Carried 14 | 6 14 Average Carried 10 | 6 10 Final Capacity 20 | 8 20 Final Carried 12 | 6 12 Class Distribution -------------------- 100% | Mutant Dominant Class ---------------- Mutant | -10/Materials Resources | -11 -10 ----------- Run | Yrd Mat Matter Collected 375 | 210 165 Remotely . | . . Salvage Created 427 | 110 317 Parts 23 | 7 16 Haulers Intercepted . | . . Recyclers Shooed 1 | . 1 Parts Field Recycled . | . . Retrieved Matter . | . . Parts Self-Destructed . | . . Prevented . | . . Kills | -11 -10 ------- Run | Yrd Mat Combat Hostiles Destroyed 8 | . 8 Guns 4 | . 4 Cannons 1 | . 1 AOE 2 | . 2 Classes Destroyed 7 | 2 5 Worker 2 | . 2 Tunneler 1 | 1 . Recycler 1 | 1 . Mechanic 1 | . 1 Operator 1 | . 1 Swarmer 3 | . 3 Grunt 5 | . 5 Best Kill Streak 4 | 2 4 Combat Bots Only 4 | . 4 Max Kills in Single Turn 3 | 1 3 Gunslinging . | . . Exploded 2 | . 2 Melee . | . . Uniques/NPCs Destroyed . | . . Combat | -11 -10 -------- Run | Yrd Mat Hostile Shots Fired 87 | . 87 Missed 12 | . 12 Hits 75 | . 75 Projectile 75 | . 75 Critical Strikes 3 | . 3 Damage Taken 934 | . 934 Core 253 | . 253 Absorbed by Shields . | . . Core Remaining (%) 100 | 100 . Volleys Fired 47 | 2 45 Largest 2 | 2 2 Hottest 100 | 90 100 Shots Fired 75 | 4 71 Gun 67 | 4 63 Cannon 6 | . 6 Launcher 2 | . 2 Special . | . . Kinetic 3 | . 3 Thermal 48 | 2 46 Explosive 2 | . 2 Electromagnetic 22 | 2 20 Robot Hit Streak 5 | 2 5 Robot Miss Streak 6 | 1 6 Penetration Max . | . . Secondary Targets . | . . Shots Hit Robots 44 | 3 41 Core Hits 24 | 3 21 Critical Kills . | . . Critical Parts Destroyed . | . . Critical Strikes 3 | 1 2 Burn 3 | 1 2 Melee Attacks . | . . Impact . | . . Slashing . | . . Piercing . | . . Sneak Attacks . | . . Combat Hostiles . | . . Follow-up Attacks . | . . Damage Inflicted 849 | 37 812 Guns 550 | 37 513 Cannons 74 | . 74 Explosions 225 | . 225 Melee . | . . Ramming . | . . Kinetic 48 | . 48 Thermal 406 | 25 381 Explosive 225 | . 225 Electromagnetic 170 | 12 158 Impact . | . . Slashing . | . . Piercing . | . . Highest Corruption . | . . Average Corruption . | . . Corruption Purged . | . . Corruption Blocked . | . . Overload Shots . | . . Overflow Damage 31 | . 31 Projectiles . | . . Explosions 31 | . 31 Melee . | . . Knockbacks . | . . Impact . | . . Kinetic . | . . Secondary . | . . Self-Inflicted Damage 31 | . 31 Shots 1 | . 1 Rammed . | . . Targets Rammed . | . . Kicked . | . . Crushed . | . . Highest Temperature 450 | 60 450 Average Temperature 156 | 30 163 Received Heat Transfer 519 | . 519 Effects 7 | . 7 Shutdowns 3 | . 3 Interference 1 | . 1 Matter Decay 1 | . 1 Damage (minor) 2 | . 2 Siege Activations . | . . Martial Activations . | . . Shielding Activations . | . . Robots Disrupted 1 | . 1 Combat Hostiles 1 | . 1 Robots Corrupted . | . . Combat Hostiles . | . . Parts Fried . | . . Impact Corruptions . | . . Robots Melted 1 | . 1 Combat Hostiles 1 | . 1 Parts Melted 2 | . 2 Heat Transferred 1332 | 148 1184 Parts Sabotaged . | . . Parts Stolen . | . . Parts Stripped . | . . Power Chain Reactions . | . . Alert | -11 -10 ------- Run | Yrd Mat Maximum Alert Level . | . . Low Security (%) 100 | 100 100 Level 1 . | . . Level 2 . | . . Level 3 . | . . Level 4 . | . . Level 5 . | . . High Security . | . . Max Security . | . . Peak Influence 105 | 10 105 Initial . | . . Average 25 | 6 26 Influence Increases 298 | 10 288 Destroy 0b10 Robot/C 160 | . 160 Destroy 0b10 Robot/NC 30 | 10 20 Destroy Leader 40 | . 40 Successful Hack 13 | . 13 Disable Machine 15 | . 15 Destroy Structure 25 | . 25 Lose Combat Pursuer 15 | . 15 Influence Decreases 276 | 10 266 Time Decay 216 | 10 206 Lost Part 60 | . 60 Squads Dispatched 2 | . 2 Investigation 2 | . 2 Extermination . | . . Reinforcement . | . . Assault . | . . Garrison . | . . Intercept . | . . Searches Triggered . | . . Construction Impeded . | . . Haulers Reinforced . | . . Active Scanning Responses . | . . Cargo Convoy Interrupts . | . . Stealth | -11 -10 --------- Run | Yrd Mat Distress Signals 2 | . 2 Communications Jammed . | . . Distress Signals . | . . Times Spotted 17 | . 17 Peak Tracking Total 5 | . 5 Tactical Retreats 1 | . 1 Traps | -11 -10 ------- Run | Yrd Mat Traps Triggered . | . . Indirectly . | . . Trap Hack Attempts . | . . Triggered . | . . Disarmed . | . . Reprogrammed . | . . Reused . | . . Traps Extracted . | . . Installed . | . . Triggered . | . . Machines | -11 -10 ---------- Run | Yrd Mat Machines Disabled 1 | . 1 Max in Single Turn 1 | . 1 Machines Repaired . | . . Machines Dismantled . | . . Machines Sabotaged . | . . Overloaded Fab Kills . | . . Hacking | -11 -10 --------- Run | Yrd Mat Machines Accessed 5 | . 5 Terminals 3 | . 3 Fabricators . | . . Repair Stations . | . . Recycling Units 2 | . 2 Scanalyzers . | . . Garrison Access . | . . Total Hacks 13 | . 13 Successful 8 | . 8 Failed 5 | . 5 Catastrophic 1 | . 1 Database Lockouts . | . . Manual 10 | . 10 Terminals 10 | . 10 Fabricators . | . . Repair Stations . | . . Recycling Units 3 | . 3 Scanalyzers . | . . Garrison Access . | . . Terminal Hacks 4 | . 4 Robot Analysis 1 | . 1 Branch Access Points 1 | . 1 Locate Traps 1 | . 1 Hauler Manifests 1 | . 1 Fabricator Hacks . | . . Repair Station Hacks . | . . Recycling Unit Hacks 2 | . 2 Retrieve Components 2 | . 2 Scanalyzer . | . . Garrison Access Hacks . | . . Unauthorized Hacks 2 | . 2 Terminals 2 | . 2 Botnet 2 | . 2 Fabricators . | . . Repair Stations . | . . Recycling Units . | . . Scanalyzers . | . . Garrison Access . | . . Data Cores Recovered 1 | . 1 Used . | . . Hacking Detections 6 | . 6 Full Trace Events . | . . Feedback Events . | . . Feedback Blocked . | . . Robot Schematics Acquired . | . . Robots Built . | . . Authchips . | . . Time . | . . Total Robot Build Rating . | . . Part Schematics Acquired . | . . Parts Built . | . . Authchips . | . . Time . | . . Total Part Build Rating . | . . Parts Repaired . | . . Time . | . . Parts Recycled . | . . Recycled Matter . | . . Retrieved Matter . | . . Retrieved Components 4 | . 4 Parts Scanalyzed . | . . Part Schematics Acquired . | . . Parts Damaged . | . . Bothacking | -11 -10 ------------ Run | Yrd Mat Used RIF Installer . | . . Robots Hacked . | . . Non-combat . | . . Combat . | . . Robot Hacks Applied . | . . Relay Couplers Released . | . . Fabnet Peak Effective % . | . . Robots Rewired . | . . Allies Hacked . | . . Hacks Repelled . | . . Allies | -11 -10 -------- Run | Yrd Mat Total Allies . | . . Largest Group . | . . Highest-Rated Group . | . . Highest-Rated Ally . | . . Total Orders . | . . Ally Attacks . | . . Total Damage . | . . Kills . | . . Allies Corrupted . | . . Allies Melted . | . . Intel | -11 -10 ------- Run | Yrd Mat Active Infowar (turns) 314 | . 314 Structural 314 | . 314 Robot Analysis Total 1 | . 1 Derelict Logs Recovered . | . . Drone Launches . | . . Drone Recoveries . | . . Exploration | -11 -10 ------------- Run | Yrd Mat Turns Passed 649 | 29 620 Spaces Moved 385 | 20 365 Core . | . . Treads . | . . Legs 21 | 9 12 Wheels 364 | 11 353 Hover . | . . Flight . | . . Fastest Speed 100 | 100 100 Average Speed 125 | 109 126 Slowest Speed 400 | 120 400 Overloaded Moves . | . . Propulsion Burnouts . | . . Robots Hopped . | . . Potential Cave-ins . | . . Cave-ins Triggered . | . . Exploration Rate (%) 35 | 2 68 Regions Visited 1 Branch Regions . Pre-discovered Areas . | . . Known Exits Taken . | . . Unknown Exits Taken 1 | 1 . Scrap Searched . | . . Spaces Dug . | . . Terrain Destroyed 25 | . 25 Melee . | . . Projectile . | . . AOE 25 | . 25 Terrain Rammed . | . . Walls Destroyed . | . . Machines Disabled . | . . Actions | -11 -10 --------- Run | Yrd Mat Total 475 | 23 452 Wait 10 | . 10 Move 384 | 19 365 Hop . | . . Pick Up 13 | . 13 Fast Attach 6 | 1 5 Attach 5 | . 5 Detach . | . . Swap 4 | . 4 Drop 6 | 1 5 Fire 47 | 2 45 Melee . | . . Ram . | . . Kick . | . . Crush . | . . Escape Stasis . | . . Rewire . | . . Trap . | . . Miscellaneous . | . . Route ------- -11/Scrapyard -10/Materials (discovered 1 exit: *Min) History --------- Turn | Location | Event 8 | -11/Scrapyard | Discovered new exit (range 3) 30 | -11/Scrapyard | Entered Materials 280 | -10/Materials | Discovered new exit (range 15) 306 | -10/Materials | Build established: Mutant 489 | -10/Materials | Core integrity fell below 50% 515 | -10/Materials | Core integrity fell below 20% 549 | -10/Materials | Lost 6 parts (1p2n1u2w) 573 | -10/Materials | Identified exit to Mines 650 | -10/Materials | Destroyed by G-34 Mercenary with Small Laser Last Messages --------------- A-02 Transporter 3x Terrain Scanner 3x Sml. Battery A-02 Transporter 2x Lgt. Treads 4x Wheel 00589_ Connecting with Recycling Unit... >>Retrieve(Components) Retrieving 1 components... Shotgun 00590_ Acquired Shotgun. 00627_ Acquired Med. Storage Unit. 00630_ W-16 Scout system corruption misinterpreted. 00630_ W-16 Scout triggered Alarm Trap. 00630_ An alarm sounds. 00630_ ALERT: Alarm triggered, dispatching investigation squad. 00648_ Heat Sink melted. 00648_ G-34 Mercenary destroyed. Map ----- +----------------------------------------------------+ | ?????????????????????????????????????????????????? | | ?????????????????????????????????????????????????? | | ?????????????????????????????????????????????????? | | ?????????????????????????????????????????????????? | | ?????????????????????????????????????????????????? | | ?????????????????????????????????????????????????? | | ?????????????????????????????????????????????????? | | ?????????????????????????????????????????????????? | | ??????## ??????????????????????????????????????? | | ??????## ##????????????????????????????????????? | | ??????## ##????????????????????????????????????? | | ??????## ????????????????????????????????????? | | ??????## ??????????????? ????????????????????? | | ??????## ?????????????? ????????????????????? | | ??????## ##?????????????? #??????????????????? | | ??????## ##?????????????? #??????????????????? | | ####??## ##?????????????? #??????????????????? | | ####??## ##????????????## ##?????????????????? | | ##??## ##????????????# #####?????????????? | | ##??## ##????????????# ??????????????? | | " ##??## ##????????????? T ???????????????? | | " ##?### ###???????????? ????????????????? | | " ###### ####??????????? #?????????????????? | | " ##### ############### #??????????????????? | | ###### ########## # #??????????????????? | | ####### # # @# #??????????????????? | | # # %g[ #??????????????????? | | # /! # t # #??????????????????? | | # ! + # #??????????????????? | | ####### # # !!!# #??????????????????? | | #### ## """ # !! # #??????????????????? | | "" #### %= # """ # !! # ####???????????????? | | "" #### # """ ###### !##??????????????? | | "" #### %%%## ##?### #??????????????? | | #### #####+######## !#??????????????? | | #### !#??????????????? | | ##### #### !#??????????????? | | ##### #### !##??????????????? | | ##### ##?# ### """ ####???????????????? | | #####?## ##???????# """ #??????????????????? | | #####?## ##???????# """ ##?????????????????? | | ##???????# """ ##?????????????????? | | ####??## ##???????# ##?????????????????? | | ####??## ##??????## #########??????????? | | ######## ##??????## ### #?????????? | | ######## ##??????## ^ # #?????????? | | #% ##??????## # #?????????? | | # ##??????## ^" #! """ #?????????? | | = # ##??????## T # """ ??????????? | | + ##??????## " * # ""????????????? | +----------------------------------------------------+ Best States ------------- Heat Dissipation 39 Energy Generation 10 Energy Capacity 125 Matter Stores 300 Matter Capacity 300 Sight Range 16 Terrain Scan Density 10 Evasion (%) 50 Recoil Reduction 1 Item Schematics ----------------- None Robot Schematics ------------------ None Fabricated ------------ Nothing Repaired ---------- Nothing Alien Tech Used ----------------- None Achievements -------------- It's Just You Challenges ------------ None Game ------ Seed FieldBiometalReconfigurator Manual? 0 Play Time 00:09:25 Cumulative 58.8 hours Start 2025.07.28 @ 20:50:25 End 2025.07.28 @ 20:59:04 Sessions 1 Manual Loads 0 Difficulty Rogue Special Mode None Game No. 27 Rogue 27 Adventurer 0 Explorer 0 Win Type - Total 3 Types 2/0/1/0/0/0/0/0/0/0 Lore% 51 Gallery% 25 Achievement% 39 Wizard Run 0 Options --------- Layout 1 ASCII 0 Keyboard 0 Movement Mouse Keybinds 0 Fullscreen 1 Font 24/Smallcaps Map View 50x35 Zoom Use 0% Tactical HUD 1 Map Filters NONE Filters NONE Steam 1 RUN: 25c2eead-0b15-4ca4-9284-2907b5cf4fbe